fUST/lending_fUST_20241007
["ID","MTS","AMOUNT","RATE_DAILY","PERIOD"]
[339975608,1728245496135,-559.4,0.00016712,2]
[339975609,1728245496144,-620.94,0.00016712,2]
[339975610,1728245496157,-570.64,0.00016712,2]
[339975611,1728245496166,-590.68,0.00016712,2]
[339975612,1728245496177,-525.69,0.00016712,2]
[339975613,1728245496187,-731.95,0.00016712,2]
[339975614,1728245496198,-749.78,0.00016712,2]
[339975615,1728245496208,-164.707236,0.00016712,2]
[339975616,1728245496219,-500.0,0.00016712,2]
[339975617,1728245496229,-500.0,0.00016712,2]
[339975618,1728245496240,-164.707236,0.00016712,2]
[339975619,1728245496251,-500.0,0.00016712,2]
[339975620,1728245496261,-500.0,0.00016712,2]
[339975621,1728245496271,-626.87939192,0.00016712,2]
[339975622,1728245496281,-500.0,0.00016712,2]
[339975623,1728245496291,-700.34,0.00016712,2]
[339975624,1728245496301,-850.21,0.00016712,2]
[339975625,1728245496311,-616.70199,0.00016712,2]
[339975626,1728245496321,-793.43,0.00016712,2]
[339975627,1728245496331,-681.81,0.00016712,2]
[339975628,1728245496341,-500.0,0.00016712,2]
[339975629,1728245496352,-500.0,0.00016712,2]
[339975630,1728245496363,-905.5,0.00016712,2]
[339975631,1728245496389,-618.07,0.00016712,2]
[339975632,1728245496410,-232.89053,0.00016712,2]
[339975633,1728245496430,-500.0,0.00016712,2]
[339975634,1728245496450,-232.89053,0.00016712,2]
[339975635,1728245496473,-1004.36,0.00016712,2]
[339975636,1728245496492,-769.79,0.00016712,2]
[339975637,1728245496514,-556.25,0.00016712,2]
[339975638,1728245496529,-500.0,0.00016712,2]
[339975639,1728245496552,-704.99,0.00016712,2]
[339975640,1728245496571,-511.68,0.00016712,2]
[339975641,1728245496593,-500.0,0.00016712,2]
[339975642,1728245496607,-500.0,0.00016712,2]
[339975643,1728245496624,-500.0,0.00016712,2]
[339975644,1728245496642,-500.0,0.00016712,2]
[339975645,1728245496662,-716.88,0.00016712,2]
[339975646,1728245496683,-330.06205636,0.00016712,2]
[339975647,1728245496706,-512.44543777,0.00016712,2]
[339975648,1728245496719,-1213.0,0.00016712,2]
[339975649,1728245496739,-500.0,0.00016712,2]
[339975650,1728245496757,-502.96,0.00016712,2]
[339975651,1728245496777,-264.93768819,0.00016712,2]
[339975652,1728245496796,-396.110102,0.00016712,2]
[339975653,1728245496814,-396.110102,0.00016712,2]
[339975654,1728245496832,-272.09043413,0.00016712,2]
[339975655,1728245496848,-500.0,0.00016712,2]
[339975656,1728245496864,-640.83,0.00016712,2]
[339975657,1728245496878,-799.58,0.00016712,2]
[339975658,1728245496894,-500.0,0.00016712,2]
[339975659,1728245496908,-500.0,0.00016712,2]
[339975660,1728245496923,-2198.44,0.00016712,2]
[339975661,1728245496939,-500.0,0.00016712,2]
[339975662,1728245496955,-701.74,0.00016712,2]
[339975663,1728245496970,-500.0,0.00016712,2]
[339975664,1728245496985,-500.0,0.00016712,2]
[339975665,1728245497001,-23220.06,0.00016712,2]
[339975666,1728245497017,-513.24,0.00016712,2]
[339975667,1728245497032,-500.0,0.00016712,2]
[339975668,1728245497048,-1825.72,0.00016712,2]
[339975669,1728245497063,-500.0,0.00016712,2]
[339975670,1728245497080,-3809.25,0.00016712,2]
[339975671,1728245497094,-689.01,0.00016712,2]
[339975672,1728245497117,-1068.37,0.00016712,2]
[339975673,1728245497135,-500.0,0.00016712,2]
[339975674,1728245497151,-375.21193814,0.00016712,2]
[339975675,1728245497169,-500.0,0.00016712,2]
[339975676,1728245497185,-1019.82,0.00016712,2]
[339975677,1728245497201,-1687.94,0.00016712,2]
[339975678,1728245497217,-500.0,0.00016712,2]
[339975679,1728245497233,-500.0,0.00016712,2]
[339975680,1728245497249,-500.0,0.00016712,2]
[339975681,1728245497265,-611.72,0.00016712,2]
[339975682,1728245497282,-500.0,0.00016712,2]
[339975683,1728245497299,-500.0,0.00016712,2]
[339975684,1728245497315,-500.0,0.00016712,2]
[339975685,1728245497331,-564.15,0.00016712,2]
[339975686,1728245497347,-608.82,0.00016712,2]
[339975687,1728245497362,-605.81,0.00016712,2]
[339975688,1728245497377,-1003.97,0.00016712,2]
[339975689,1728245497391,-539.970348,0.00016712,2]
[339975690,1728245497406,-541.62,0.00016712,2]
[339975691,1728245497421,-589.17,0.00016712,2]
[339975692,1728245497435,-500.0,0.00016712,2]
[339975693,1728245497450,-539.970348,0.00016712,2]
[339975694,1728245497465,-500.0,0.00016712,2]
[339975695,1728245497482,-1166.46,0.00016712,2]
[339975696,1728245497498,-606.03,0.00016712,2]
[339975697,1728245497515,-578.55,0.00016712,2]
[339975698,1728245497530,-500.0,0.00016712,2]
[339975699,1728245497547,-526.31,0.00016712,2]
[339975700,1728245497565,-500.0,0.00016712,2]
[339975701,1728245497581,-500.0,0.00016712,2]
[339975702,1728245497595,-725.991254,0.00016712,2]
[339975703,1728245497612,-616.98,0.00016712,2]
[339975704,1728245497629,-725.991254,0.00016712,2]
[339975705,1728245497644,-500.0,0.00016712,2]
[339975706,1728245497659,-321.13954655,0.00016712,2]
[339975707,1728245497674,-500.0,0.00016712,2]
[339975708,1728245497689,-500.0,0.00016712,2]
[339975709,1728245497705,-500.0,0.00016712,2]
[339975710,1728245497721,-667.06,0.00016712,2]
[339975711,1728245497737,-500.0,0.00016712,2]
[339975712,1728245497754,-500.0,0.00016712,2]
[339975713,1728245497939,-529.178314,0.00016712,2]
[339975714,1728245497968,-244.37154052,0.00016712,2]
[339975715,1728245497980,-529.178314,0.00016712,2]
[339975716,1728245497993,-500.0,0.00016712,2]
[339975717,1728245498004,-500.0,0.00016712,2]
[339975718,1728245498016,-1194.140839,0.00016712,2]
[339975719,1728245498028,-1194.140839,0.00016712,2]
[339975720,1728245498040,-1854.38,0.00016712,2]
[339975721,1728245498051,-151.0,0.00016712,2]
[339975722,1728245498062,-500.0,0.00016712,2]
[339975723,1728245498072,-500.0,0.00016712,2]
[339975724,1728245498084,-500.0,0.00016712,2]
[339975725,1728245498095,-2983.12,0.00016712,2]
[339975726,1728245498108,-244.009806,0.00016712,2]
[339975727,1728245498118,-500.0,0.00016712,2]
[339975728,1728245498129,-244.009806,0.00016712,2]
[339975729,1728245498141,-667.95,0.00016712,2]
[339975730,1728245498154,-500.0,0.00016712,2]
[339975731,1728245498166,-830.07,0.00016712,2]
[339975732,1728245498176,-518.7,0.00016712,2]
[339975733,1728245498187,-500.0,0.00016712,2]
[339975734,1728245498200,-500.0,0.00016712,2]
[339975735,1728245498211,-500.0,0.00016712,2]
[339975736,1728245498221,-2165.89,0.00016712,2]
[339975737,1728245498232,-500.0,0.00016712,2]
[339975738,1728245498244,-880.03,0.00016712,2]
[339975739,1728245498255,-151.0,0.00016712,2]
[339975740,1728245498266,-3094.43,0.00016712,2]
[339975741,1728245498278,-701.44,0.00016712,2]
[339975742,1728245498288,-500.0,0.00016712,2]
[339975743,1728245498299,-4696.79,0.00016712,2]
[339975744,1728245498309,-1213.43,0.00016712,2]
[339975745,1728245498320,-404.78485722,0.00016712,2]
[339975746,1728245498330,-505.3,0.00016712,2]
[339975747,1728245498341,-500.0,0.00016712,2]
[339975748,1728245498353,-507.4,0.00016712,2]
[339975749,1728245498371,-500.0,0.00016712,2]
[339975750,1728245498382,-500.0,0.00016712,2]
[339975751,1728245498393,-4000.0,0.00016832,2]
[339975752,1728245498405,-1535.00681087,0.00016836,2]
[339975753,1728245498416,-600.5309649,0.0001692,2]
[339975754,1728245498429,-4500.0,0.00016968,2]
[339975755,1728245498441,-461.0,0.00016986,2]
[339975756,1728245498452,-811.88,0.00016986,2]
[339975757,1728245498463,-500.0,0.00016986,2]
[339975758,1728245498474,-321.9159,0.00016986,2]
[339975759,1728245498484,-321.9159,0.00016986,2]
[339975760,1728245498494,-538.21,0.00016986,2]
[339975761,1728245498504,-500.0,0.00016986,2]
[339975762,1728245498518,-690.31,0.00016986,2]
[339975763,1728245498528,-753.75,0.00016986,2]
[339975764,1728245498538,-500.0,0.00016986,2]
[339975765,1728245498549,-500.0,0.00016986,2]
[339975766,1728245498560,-560.51,0.00016986,2]
[339975767,1728245498572,-500.0,0.00016986,2]
[339975768,1728245498584,-693.21,0.00016986,2]
[339975769,1728245498595,-750.67,0.00016986,2]
[339975770,1728245498606,-624.79,0.00016986,2]
[339975771,1728245498616,-500.0,0.00016986,2]
[339975772,1728245498626,-500.0,0.00016986,2]
[339975773,1728245498637,-151.0,0.00016986,2]
[339975774,1728245498649,-621.15,0.00016986,2]
[339975775,1728245498662,-573.68,0.00016986,2]
[339975776,1728245498674,-500.0,0.00016986,2]
[339975777,1728245498686,-319.48733035,0.00016986,2]
[339975778,1728245498696,-500.0,0.00016986,2]
[339975779,1728245498708,-463.23782225,0.00016986,2]
[339975780,1728245498721,-566.65,0.00016986,2]
[339975781,1728245498732,-151.0,0.00016986,2]
[339975782,1728245498742,-500.0,0.00016986,2]
[339975783,1728245498754,-1154.19,0.00016986,2]
[339975784,1728245498765,-500.0,0.00016986,2]
[339975785,1728245498777,-511.18,0.00016986,2]
[339975786,1728245498787,-1179.38,0.00016986,2]
[339975787,1728245498800,-500.0,0.00016986,2]
[339975788,1728245498812,-751.93,0.00016986,2]
[339975789,1728245498823,-151.0,0.00016986,2]
[339975790,1728245498836,-500.0,0.00016986,2]
[339975791,1728245498846,-500.0,0.00016986,2]
[339975792,1728245498857,-734.54,0.00016986,2]
[339975793,1728245498871,-244.100492,0.00016986,2]
[339975794,1728245498882,-151.0,0.00016986,2]
[339975795,1728245498894,-500.0,0.00016986,2]
[339975796,1728245498905,-244.100492,0.00016986,2]
[339975797,1728245498916,-1105.529882,0.00016986,2]
[339975798,1728245498928,-335.41335947,0.00016986,2]
[339975799,1728245498938,-1105.529882,0.00016986,2]
[339975800,1728245498950,-500.0,0.00016986,2]
[339975801,1728245498961,-500.0,0.00016986,2]
[339975802,1728245498972,-782.03,0.00016986,2]
[339975803,1728245498984,-500.0,0.00016986,2]
[339975804,1728245498994,-500.0,0.00016986,2]
[339975805,1728245499006,-600.57,0.00016986,2]
[339975806,1728245499018,-1034.12,0.00016986,2]
[339975807,1728245499028,-500.0,0.00016986,2]
[339975808,1728245499039,-500.0,0.00016986,2]
[339975809,1728245499050,-500.0,0.00016986,2]
[339975810,1728245499062,-500.0,0.00016986,2]
[339975811,1728245499073,-500.0,0.00016986,2]
[339975812,1728245499085,-369.18214738,0.00016986,2]
[339975813,1728245499097,-151.0,0.00016986,2]
[339975814,1728245499111,-514.58426742,0.00016986,2]
[339975815,1728245499123,-567.02,0.00016986,2]
[339975816,1728245499138,-547.51,0.00016986,2]
[339975817,1728245499147,-620.41,0.00016986,2]
[339975818,1728245499162,-500.0,0.00016986,2]
[339975819,1728245499172,-500.0,0.00016986,2]
[339975820,1728245499183,-622.64,0.00016986,2]
[339975821,1728245499195,-500.0,0.00016986,2]
[339975822,1728245499207,-1766.09,0.00016986,2]
[339975823,1728245499218,-1018.45,0.00016986,2]
[339975824,1728245499227,-336.72,0.00016986,2]
[339975825,1728245499239,-646.49,0.00016986,2]
[339975826,1728245499253,-500.0,0.00016986,2]
[339975827,1728245499264,-500.0,0.00016986,2]
[339975828,1728245499275,-504.07065563,0.00016986,2]
[339975829,1728245499288,-548.58,0.00016986,2]
[339975830,1728245499299,-500.0,0.00016986,2]
[339975831,1728245499310,-642.06,0.00016986,2]
[339975832,1728245499323,-500.0,0.00016986,2]
[339975833,1728245499334,-500.0,0.00016986,2]
[339975834,1728245499346,-500.0,0.00016986,2]
[339975835,1728245499359,-732.29,0.00016986,2]
[339975836,1728245499370,-678.84,0.00016986,2]
[339975837,1728245499380,-744.55,0.00016986,2]
[339975838,1728245499393,-500.0,0.00016986,2]
[339975839,1728245499406,-500.0,0.00016986,2]
[339975840,1728245499419,-500.0,0.00016986,2]
[339975841,1728245499430,-610.927981,0.00016986,2]
[339975842,1728245499442,-500.0,0.00016986,2]
[339975843,1728245499454,-610.927981,0.00016986,2]
[339975844,1728245499467,-500.0,0.00016986,2]
[339975845,1728245499478,-701.53,0.00016986,2]
[339975846,1728245499488,-977.67,0.00016986,2]
[339975847,1728245499498,-500.0,0.00016986,2]
[339975848,1728245499509,-500.0,0.00016986,2]
[339975849,1728245499521,-631.97,0.00016986,2]
[339975850,1728245499534,-151.0,0.00016986,2]
[339975851,1728245499545,-740.81,0.00016986,2]
[339975852,1728245499555,-566.27,0.00016986,2]
[339975853,1728245499568,-151.0,0.00016986,2]
[339975854,1728245499579,-1278.33,0.00016986,2]
[339975855,1728245499591,-500.0,0.00016986,2]
[339975856,1728245499600,-500.0,0.00016986,2]
[339975857,1728245499614,-711.1,0.00016986,2]
[339975858,1728245499625,-500.0,0.00016986,2]
[339975859,1728245499637,-393.0,0.00016986,2]
[339975860,1728245499649,-500.0,0.00016986,2]
[339975861,1728245499661,-225.2580884,0.00016986,2]
[339975862,1728245499674,-500.0,0.00016986,2]
[339975863,1728245499684,-1687.43,0.00016986,2]
[339975864,1728245499694,-500.0,0.00016986,2]
[339975865,1728245499705,-500.0,0.00016986,2]
[339975866,1728245499715,-500.0,0.00016986,2]
[339975867,1728245499725,-500.0,0.00016986,2]
[339975868,1728245499735,-559.4,0.00016986,2]
[339975869,1728245499745,-620.94,0.00016986,2]
[339975870,1728245499756,-570.64,0.00016986,2]
[339975871,1728245499766,-590.68,0.00016986,2]
[339975872,1728245499778,-525.69,0.00016986,2]
[339975873,1728245499789,-731.95,0.00016986,2]
[339975874,1728245499799,-1541.796647,0.00016986,2]
[339975875,1728245499810,-1541.796647,0.00016986,2]
[339975876,1728245499822,-749.78,0.00016986,2]
[339975877,1728245499832,-500.0,0.00016986,2]
[339975878,1728245499844,-500.0,0.00016986,2]
[339975879,1728245499854,-500.0,0.00016986,2]
[339975880,1728245499866,-500.0,0.00016986,2]
[339975881,1728245499877,-500.0,0.00016986,2]
[339975882,1728245499889,-700.34,0.00016986,2]
[339975883,1728245500020,-850.21,0.00016986,2]
[339975884,1728245500032,-793.43,0.00016986,2]
[339975885,1728245500044,-681.81,0.00016986,2]
[339975886,1728245500056,-500.0,0.00016986,2]
[339975887,1728245500067,-500.0,0.00016986,2]
[339975888,1728245500078,-3394.923181,0.00016986,2]
[339975889,1728245500089,-905.5,0.00016986,2]
[339975890,1728245500100,-3394.923181,0.00016986,2]
[339975891,1728245500114,-618.07,0.00016986,2]
[339975892,1728245500127,-500.0,0.00016986,2]
[339975893,1728245500140,-1004.36,0.00016986,2]
[339975894,1728245500151,-769.79,0.00016986,2]
[339975895,1728245500167,-556.25,0.00016986,2]
[339975896,1728245500178,-500.0,0.00016986,2]
[339975897,1728245500190,-704.99,0.00016986,2]
[339975898,1728245500204,-511.68,0.00016986,2]
[339975899,1728245500214,-500.0,0.00016986,2]
[339975900,1728245500225,-151.0,0.00016986,2]
[339975901,1728245500239,-500.0,0.00016986,2]
[339975902,1728245500250,-432.24653466,0.00016986,2]
[339975903,1728245500263,-500.0,0.00016986,2]
[339975904,1728245500276,-716.88,0.00016986,2]
[339975905,1728245500286,-1213.0,0.00016986,2]
[339975906,1728245500297,-500.0,0.00016986,2]
[339975907,1728245500308,-502.96,0.00016986,2]
[339975908,1728245500320,-255.019859,0.00016986,2]
[339975909,1728245500332,-255.019859,0.00016986,2]
[339975910,1728245500343,-500.0,0.00016986,2]
[339975911,1728245500356,-640.83,0.00016986,2]
[339975912,1728245500367,-799.58,0.00016986,2]
[339975913,1728245500379,-500.0,0.00016986,2]
[339975914,1728245500390,-500.0,0.00016986,2]
[339975915,1728245500402,-2198.44,0.00016986,2]
[339975916,1728245500414,-348.967678,0.00016986,2]
[339975917,1728245500426,-500.0,0.00016986,2]
[339975918,1728245500436,-701.74,0.00016986,2]
[339975919,1728245500446,-529.97436011,0.00016986,2]
[339975920,1728245500455,-348.967678,0.00016986,2]
[339975921,1728245500466,-481.29925963,0.00016986,2]
[339975922,1728245500478,-23220.06,0.00016986,2]
[339975923,1728245500491,-513.24,0.00016986,2]
[339975924,1728245500503,-500.0,0.00016986,2]
[339975925,1728245500516,-1825.72,0.00016986,2]
[339975926,1728245500527,-500.0,0.00016986,2]
[339975927,1728245500537,-3809.25,0.00016986,2]
[339975928,1728245500548,-689.01,0.00016986,2]
[339975929,1728245500560,-712.377784,0.00016986,2]
[339975930,1728245500571,-580.971183,0.00016986,2]
[339975931,1728245500582,-1068.37,0.00016986,2]
[339975932,1728245500593,-712.377784,0.00016986,2]
[339975933,1728245500603,-500.0,0.00016986,2]
[339975934,1728245500614,-580.971183,0.00016986,2]
[339975935,1728245500625,-151.0,0.00016986,2]
[339975936,1728245500634,-500.0,0.00016986,2]
[339975937,1728245500644,-1687.94,0.00016986,2]
[339975938,1728245500654,-1019.82,0.00016986,2]
[339975939,1728245500664,-500.0,0.00016986,2]
[339975940,1728245500675,-500.0,0.00016986,2]
[339975941,1728245500685,-500.0,0.00016986,2]
[339975942,1728245500696,-611.72,0.00016986,2]
[339975943,1728245500706,-480.84023258,0.00016986,2]
[339975944,1728245500717,-281.67504191,0.00016986,2]
[339975945,1728245500727,-374.85601358,0.00016986,2]
[339975946,1728245500738,-564.15,0.00016986,2]
[339975947,1728245500749,-608.82,0.00016986,2]
[339975948,1728245500760,-605.81,0.00016986,2]
[339975949,1728245500771,-1003.97,0.00016986,2]
[339975950,1728245500786,-521.089365,0.00016986,2]
[339975951,1728245500797,-541.62,0.00016986,2]
[339975952,1728245500807,-521.089365,0.00016986,2]
[339975953,1728245500816,-589.17,0.00016986,2]
[339975954,1728245500826,-500.0,0.00016986,2]
[339975955,1728245500836,-500.0,0.00016986,2]
[339975956,1728245500846,-1166.46,0.00016986,2]
[339975957,1728245500856,-606.03,0.00016986,2]
[339975958,1728245500866,-578.55,0.00016986,2]
[339975959,1728245500877,-500.0,0.00016986,2]
[339975960,1728245500888,-526.31,0.00016986,2]
[339975961,1728245500898,-193.578668,0.00016986,2]
[339975962,1728245500908,-500.0,0.00016986,2]
[339975963,1728245500918,-500.0,0.00016986,2]
[339975964,1728245500930,-616.98,0.00016986,2]
[339975965,1728245500940,-500.0,0.00016986,2]
[339975966,1728245500952,-500.0,0.00016986,2]
[339975967,1728245500964,-317.97288265,0.00016986,2]
[339975968,1728245500975,-500.0,0.00016986,2]
[339975969,1728245500986,-667.06,0.00016986,2]
[339975970,1728245500996,-500.0,0.00016986,2]
[339975971,1728245501006,-500.0,0.00016986,2]
[339975972,1728245501016,-500.0,0.00016986,2]
[339975973,1728245501028,-500.0,0.00016986,2]
[339975974,1728245501039,-1854.38,0.00016986,2]
[339975975,1728245501050,-500.0,0.00016986,2]
[339975976,1728245501061,-500.0,0.00016986,2]
[339975977,1728245501071,-500.0,0.00016986,2]
[339975978,1728245501083,-2983.12,0.00016986,2]
[339975979,1728245501094,-500.0,0.00016986,2]
[339975980,1728245501104,-667.95,0.00016986,2]
[339975981,1728245501115,-500.0,0.00016986,2]
[339975982,1728245501127,-830.07,0.00016986,2]
[339975983,1728245501138,-518.7,0.00016986,2]
[339975984,1728245501149,-500.0,0.00016986,2]
[339975985,1728245501164,-500.0,0.00016986,2]
[339975986,1728245501174,-500.0,0.00016986,2]
[339975987,1728245501186,-2165.89,0.00016986,2]
[339975988,1728245501197,-500.0,0.00016986,2]
[339975989,1728245501209,-880.03,0.00016986,2]
[339975990,1728245501220,-3094.43,0.00016986,2]
[339975991,1728245501231,-701.44,0.00016986,2]
[339975992,1728245501243,-500.0,0.00016986,2]
[339975993,1728245501256,-4696.79,0.00016986,2]
[339975994,1728245501267,-1213.43,0.00016986,2]
[339975995,1728245501278,-505.3,0.00016986,2]
[339975996,1728245501289,-500.0,0.00016986,2]
[339975997,1728245501300,-507.4,0.00016986,2]
[339975998,1728245501309,-500.0,0.00016986,2]
[339975999,1728245501318,-572.57235487,0.00016986,2]
[339976000,1728245501329,-1000.0,0.00017,17]
[339976001,1728245501339,-1251.1056856,0.00017,2]
[339976002,1728245501352,-5000.0,0.00017105,2]
[339976003,1728245501369,-5500.0,0.00017242,2]
[339976004,1728245501379,-461.0,0.0001726,2]
[339976005,1728245501388,-811.88,0.0001726,2]
[339976006,1728245501397,-500.0,0.0001726,2]
[339976007,1728245501409,-538.21,0.0001726,2]
[339976008,1728245501421,-500.0,0.0001726,2]
[339976009,1728245501431,-690.31,0.0001726,2]
[339976010,1728245501441,-753.75,0.0001726,2]
[339976011,1728245501453,-500.0,0.0001726,2]
[339976012,1728245501464,-500.0,0.0001726,2]
[339976013,1728245501476,-560.51,0.0001726,2]
[339976014,1728245501486,-500.0,0.0001726,2]
[339976015,1728245501497,-693.21,0.0001726,2]
[339976016,1728245501507,-750.67,0.0001726,2]
[339976017,1728245501519,-624.79,0.0001726,2]
[339976018,1728245501529,-500.0,0.0001726,2]
[339976019,1728245501540,-500.0,0.0001726,2]
[339976020,1728245501551,-621.15,0.0001726,2]
[339976021,1728245501563,-573.68,0.0001726,2]
[339976022,1728245501574,-500.0,0.0001726,2]
[339976023,1728245501585,-500.0,0.0001726,2]
[339976024,1728245501596,-566.65,0.0001726,2]
[339976025,1728245501606,-500.0,0.0001726,2]
[339976026,1728245501619,-1154.19,0.0001726,2]
[339976027,1728245501630,-494.68404301,0.0001726,2]
[339976028,1728245501640,-511.18,0.0001726,2]
[339976029,1728245501651,-1179.38,0.0001726,2]
[339976030,1728245501660,-500.0,0.0001726,2]
[339976031,1728245501670,-751.93,0.0001726,2]
[339976032,1728245501680,-500.0,0.0001726,2]
[339976033,1728245501689,-500.0,0.0001726,2]
[339976034,1728245501699,-734.54,0.0001726,2]
[339976035,1728245501709,-500.0,0.0001726,2]
[339976036,1728245501719,-500.0,0.0001726,2]
[339976037,1728245501729,-500.0,0.0001726,2]
[339976038,1728245501739,-782.03,0.0001726,2]
[339976039,1728245501748,-500.0,0.0001726,2]
[339976040,1728245501758,-500.0,0.0001726,2]
[339976041,1728245501768,-600.57,0.0001726,2]
[339976042,1728245501777,-1034.12,0.0001726,2]
[339976043,1728245501787,-495.9282731,0.0001726,2]
[339976044,1728245501797,-500.0,0.0001726,2]
[339976045,1728245501806,-500.0,0.0001726,2]
[339976046,1728245501816,-500.0,0.0001726,2]
[339976047,1728245501826,-240.43036796,0.0001726,2]
[339976048,1728245501836,-567.02,0.0001726,2]
[339976049,1728245501846,-547.51,0.0001726,2]
[339976050,1728245501857,-620.41,0.0001726,2]
[339976051,1728245501868,-500.0,0.0001726,2]
[339976052,1728245501878,-500.0,0.0001726,2]
[339976053,1728245501888,-622.64,0.0001726,2]
[339976054,1728245501900,-500.0,0.0001726,2]
[339976055,1728245501911,-1766.09,0.0001726,2]
[339976056,1728245501922,-1018.45,0.0001726,2]
[339976057,1728245501934,-336.72,0.0001726,2]
[339976058,1728245501946,-646.49,0.0001726,2]
[339976059,1728245501957,-457.61523727,0.0001726,2]
[339976060,1728245501969,-334.13715818,0.0001726,2]
[339976061,1728245501981,-548.58,0.0001726,2]
[339976062,1728245501992,-500.0,0.0001726,2]
[339976063,1728245502003,-642.06,0.0001726,2]
[339976064,1728245502013,-500.0,0.0001726,2]
[339976065,1728245502025,-500.0,0.0001726,2]
[339976066,1728245502036,-500.0,0.0001726,2]
[339976067,1728245502048,-732.29,0.0001726,2]
[339976068,1728245502060,-678.84,0.0001726,2]
[339976069,1728245502071,-744.55,0.0001726,2]
[339976070,1728245502081,-500.0,0.0001726,2]
[339976071,1728245502091,-500.0,0.0001726,2]
[339976072,1728245502103,-500.0,0.0001726,2]
[339976073,1728245502114,-610.927981,0.0001726,2]
[339976074,1728245502127,-500.0,0.0001726,2]
[339976075,1728245502139,-610.927981,0.0001726,2]
[339976076,1728245502150,-500.0,0.0001726,2]
[339976077,1728245502167,-701.53,0.0001726,2]
[339976078,1728245502179,-977.67,0.0001726,2]
[339976079,1728245502191,-500.0,0.0001726,2]
[339976080,1728245502204,-500.0,0.0001726,2]
[339976081,1728245502214,-631.97,0.0001726,2]
[339976082,1728245502225,-151.0,0.0001726,2]
[339976083,1728245502237,-740.81,0.0001726,2]
[339976084,1728245502248,-566.27,0.0001726,2]
[339976085,1728245502259,-204.297773,0.0001726,2]
[339976086,1728245502270,-1278.33,0.0001726,2]
[339976087,1728245502280,-500.0,0.0001726,2]
[339976088,1728245502290,-500.0,0.0001726,2]
[339976089,1728245502300,-711.1,0.0001726,2]
[339976090,1728245502310,-500.0,0.0001726,2]
[339976091,1728245502321,-500.0,0.0001726,2]
[339976092,1728245502333,-500.0,0.0001726,2]
[339976093,1728245502343,-1687.43,0.0001726,2]
[339976094,1728245502355,-191.39898062,0.0001726,2]
[339976095,1728245502367,-500.0,0.0001726,2]
[339976096,1728245502378,-733.55402,0.0001726,2]
[339976097,1728245502389,-512.20239688,0.0001726,2]
[339976098,1728245502401,-500.0,0.0001726,2]
[339976099,1728245502411,-733.55402,0.0001726,2]
[339976100,1728245502421,-559.4,0.0001726,2]
[339976101,1728245502431,-620.94,0.0001726,2]
[339976102,1728245502441,-570.64,0.0001726,2]
[339976103,1728245502451,-590.68,0.0001726,2]
[339976104,1728245502461,-525.69,0.0001726,2]
[339976105,1728245502472,-731.95,0.0001726,2]
[339976106,1728245502483,-749.78,0.0001726,2]
[339976107,1728245502494,-164.707236,0.0001726,2]